[Event "Bionext Festival 2019"]
[Site "Chihuahua"]
[Date "2019.12.02"]
[Round "7.3"]
[White "Macieja, Bartlomiej"]
[Black "Cuenca Jimenez, Jose Fernando"]
[Result "1/2-1/2"]
[ECO "D53"]
[WhiteElo "2513"]
[BlackElo "2523"]
[Annotator "ChessBase"]
[PlyCount "103"]
[EventDate "2019.11.30"]
[EventType "swiss"]
[EventCountry "MEX"]
[SourceTitle "playchess.com"]
[Source "ChessBase"]
[SourceQuality "1"]
[TimeControl "5400+30"]

1. d4 {[%emt 0:00:00]} d5 {[%emt 0:00:00]} 2. c4 {[%emt 0:00:00]} e6 {[%emt 0:00:00]} 3. Nc3 {[%emt 0:00:19]} Nf6 {[%emt 0:00:00]} 4. Bg5 {[%emt 0:08:02]} Be7 {[%emt 0:03:10]} 5. e3 {[%emt 0:00:07]} O-O {[%emt 0:01:23]} 6. Qc2 {[%emt 0:17:39]} c5 {[%emt 0:09:17]} 7. dxc5 {[%emt 0:01:00]} dxc4 {[%emt 0:02:18]} 8. Bxc4 {[%emt 0:00:27]} Qa5 {[%emt 0:01:00]} 9. Nf3 {[%emt 0:10:16]} Qxc5 {[%emt 0:00:55]} 10. Be2 {[%emt 0:25:50]} b6 {[%emt 0:06:00]} 11. Rc1 {[%emt 0:20:51]} Bb7 {[%emt 0:05:45]} 12. O-O {[%emt 0:00:03]} Nbd7 {[%emt 0:06:36]} 13. Qa4 {[%emt 0:03:50]} Rfc8 {[%emt 0:14:57]} 14. Rfd1 {[%emt 0:01:57]} Qb4 {[%emt 0:13:56]} 15. Qxb4 {[%emt 0:00:07]} Bxb4 {[%emt 0:00:02]} 16. Nb5 {[%emt 0:00:17]} a6 {[%emt 0:01:48]} 17. Rxc8+ {[%emt 0:02:43]} Rxc8 {[%emt 0:00:06]} 18. Nd6 {[%emt 0:03:27]} Bxd6 {[%emt 0:01:46]} 19. Rxd6 {[%emt 0:00:01]} b5 {[%emt 0:03:01]} 20. h3 {[%emt 0:01:33]} Kf8 {[%emt 0:03:23]} 21. Bh4 {[%emt 0:00:57]} Ke7 {[%emt 0:00:50]} 22. Rd2 {[%emt 0:00:21]} h6 {[%emt 0:00:20]} 23. Bd3 {[%emt 0:00:28]} g5 {[%emt 0:03:02]} 24. Bg3 {[%emt 0:00:01]} Nc5 {[%emt 0:00:15]} 25. Be5 {[%emt 0:01:26]} Nfe4 {[%emt 0:04:08]} 26. Bxe4 {[%emt 0:00:01]} Nxe4 {[%emt 0:00:06]} 27. Re2 {[%emt 0:00:02]} f6 {[%emt 0:00:59]} 28. Bd4 {[%emt 0:00:03]} e5 {[%emt 0:01:35]} 29. Bb6 {[%emt 0:00:01]} Rc1+ {[%emt 0:00:31]} 30. Kh2 {[%emt 0:00:11]} Rf1 {[%emt 0:02:36]} 31. Nd2 {[%emt 0:00:42]} Rxf2 {[%emt 0:00:23]} 32. Rxf2 {[%emt 0:00:01]} Nxf2 {[%emt 0:00:04]} 33. Nb3 {[%emt 0:00:15]} Nd1 {[%emt 0:07:15]} 34. Nc5 {[%emt 0:00:03]} Bc8 {[%emt 0:00:26]} 35. Nd3 {[%emt 0:00:01]} e4 {[%emt 0:07:27]} 36. Nb4 {[%emt 0:00:56]} Nxb2 {[%emt 0:01:18]} 37. Bd4 {[%emt 0:00:01]} Nc4 {[%emt 0:00:37]} 38. Nd5+ {[%emt 0:00:02]} Ke6 {[%emt 0:00:22]} 39. Nxf6 {[%emt 0:00:01]} Nxe3 {[%emt 0:00:38]} 40. Nxe4 {[%emt 0:00:18]} Kd5 {[%emt 0:01:08]} 41. Bxe3 {[%emt 0:00:53]} Kxe4 {[%emt 0:00:01]} 42. Bc5 {[%emt 0:02:40]} h5 {[%emt 0:00:26]} 43. Kg3 {[%emt 0:02:16]} Be6 {[%emt 0:00:19]} 44. a3 {[%emt 0:00:01]} a5 {[%emt 0:00:53]} 45. Kf2 {[%emt 0:01:37]} Kd3 {[%emt 0:00:03]} 46. g4 {[%emt 0:00:30]} hxg4 {[%emt 0:01:21]} 47. hxg4 {[%emt 0:00:01]} Kc4 {[%emt 0:00:22]} 48. Be7 {[%emt 0:00:01]} Kb3 {[%emt 0:00:28]} 49. Kg3 {[%emt 0:00:05]} Bd5 {[%emt 0:00:31]} 50. Kh3 {[%emt 0:00:02]} b4 {[%emt 0:00:41]} 51. axb4 {[%emt 0:00:03]} axb4 {[%emt 0:00:24]} 52. Bxg5 {[%emt 0:00:04]} 1/2-1/2

[Event "Bionext Festival 2019"]
[Site "Chihuahua"]
[Date "2019.12.01"]
[Round "7.4"]
[White "Gomez, Zuniga David Fernand"]
[Black "Rascon Vega, Alfonso"]
[Result "1/2-1/2"]
[ECO "E69"]
[WhiteElo "2078"]
[BlackElo "2077"]
[Annotator "NA RC"]
[PlyCount "22"]
[EventDate "2019.11.30"]
[EventType "swiss"]
[EventCountry "MEX"]
[SourceTitle "playchess.com"]
[Source "ChessBase"]
[SourceQuality "1"]
[TimeControl "5400+30"]

1. d4 {[%emt 0:00:00]} Nf6 {[%emt 0:01:01]} 2. Nf3 {[%emt 0:01:02]} g6 {[%emt 0:00:50]} 3. g3 {[%emt 0:01:17]} Bg7 {[%emt 0:00:20]} 4. Bg2 {[%emt 0:00:56]} O-O {[%emt 0:00:28]} 5. c4 {[%emt 0:01:17]} d6 {[%emt 0:00:13]} 6. Nc3 {[%emt 0:00:13]} c6 {[%emt 0:00:21]} 7. O-O {[%emt 0:00:25]} Qa5 {[%emt 0:00:18]} 8. h3 {[%emt 0:00:36]} e5 {[%emt 0:00:33]} 9. e4 {[%emt 0:02:16]} Nbd7 {[%emt 0:00:15]} 10. d5 {[%emt 0:02:11]} cxd5 {[%emt 0:00:07]} 11. cxd5 {[%emt 1:25:17]} b5 1/2-1/2

[Event "Bionext Festival 2019"]
[Site "Chihuahua"]
[Date "2019.12.01"]
[Round "7.5"]
[White "Tello Chavez, Isaac Valent"]
[Black "Pina Gonzalez, Jose Antonio"]
[Result "*"]
[ECO "A25"]
[WhiteElo "2274"]
[BlackElo "2170"]
[Annotator "RC"]
[PlyCount "67"]
[EventDate "2019.11.30"]
[EventType "swiss"]
[EventCountry "MEX"]
[SourceTitle "playchess.com"]
[Source "ChessBase"]
[SourceQuality "1"]
[TimeControl "5400+30"]

1. c4 {[%emt 0:00:00]} Nf6 {[%emt 0:00:00]} 2. Nc3 {[%emt 0:00:00]} e5 {[%emt 0:00:18]} 3. g3 {[%emt 0:00:00]} Nc6 {[%emt 0:00:47]} 4. Bg2 {[%emt 1:32:00]} Bb4 {[%emt 0:00:58]} 5. Nd5 {[%emt 0:06:07]} Be7 {[%emt 0:04:14]} 6. e3 {[%emt 0:01:28]} O-O {[%emt 0:00:46]} 7. Ne2 {[%emt 0:00:20]} Nxd5 {[%emt 0:00:12]} 8. cxd5 {[%emt 0:00:08]} Nb8 {[%emt 0:00:13]} 9. d4 {[%emt 1:26:24]} exd4 {[%emt 0:01:28]} 10. Nxd4 {[%emt 0:00:35]} d6 {[%emt 0:00:13]} 11. O-O {[%emt 0:00:32]} Nd7 {[%emt 0:00:10]} 12. b3 {[%emt 0:03:50]} Bf6 {[%emt 0:02:39]} 13. Bb2 {[%emt 1:22:42]} Nc5 {[%emt 0:01:35]} 14. h3 {[%emt 0:03:59]} a5 {[%emt 0:01:11]} 15. Qc2 {[%emt 0:03:02]} Bd7 {[%emt 0:00:38]} 16. Rad1 {[%emt 1:16:52]} Re8 {[%emt 0:07:57]} 17. Rfe1 {[%emt 0:01:56]} Na6 {[%emt 1:15:11]} 18. Bc3 {[%emt 0:08:39]} Nc5 {[%emt 0:00:48]} 19. Kh2 {[%emt 0:02:49]} h6 {[%emt 0:18:31]} 20. f4 {[%emt 0:05:46]} b5 {[%emt 0:14:23]} 21. a3 {[%emt 0:03:45]} Qc8 {[%emt 0:04:29]} 22. e4 {[%emt 0:04:58]} a4 {[%emt 0:04:08]} 23. b4 {[%emt 0:02:08]} Bxd4 {[%emt 0:03:02]} 24. Bxd4 {[%emt 0:01:05]} Nb3 {[%emt 0:00:22]} 25. Bb2 {[%emt 0:01:41]} c5 {[%emt 0:00:20]} 26. dxc6 {[%emt 0:01:05]} Bxc6 {[%emt 0:00:54]} 27. Rxd6 {[%emt 0:06:47]} Bb7 {[%emt 0:02:09]} 28. Qd1 {[%emt 0:38:45]} Qc4 {[%emt 0:05:19]} 29. Qg4 {[%emt 0:03:04]} g6 {[%emt 0:02:57]} 30. Rxg6+ {[%emt 0:01:26]} Kf8 {[%emt 0:00:12]} 31. Bg7+ {[%emt 0:02:29]} Ke7 {[%emt 0:21:54]} 32. Bf6+ {[%emt 0:00:05]} Kd6 {[%emt 0:21:40]} 33. Be5+ {[%emt 0:00:05]} Ke7 {[%emt 0:00:08]} 34. Rd1 {[%emt 0:00:54]} *

[Event "Bionext Festival 2019"]
[Site "Chihuahua"]
[Date "2019.12.01"]
[Round "7.7"]
[White "Rodriguez Rivera, Pedro"]
[Black "Rose, Felix"]
[Result "1-0"]
[ECO "B26"]
[WhiteElo "2188"]
[BlackElo "2059"]
[Annotator "ChessBase"]
[PlyCount "32"]
[EventDate "2019.11.30"]
[EventType "swiss"]
[EventCountry "MEX"]
[SourceTitle "playchess.com"]
[Source "ChessBase"]
[SourceQuality "1"]
[TimeControl "5400+30"]

1. e4 {[%emt 0:00:00]} c5 {[%emt 0:01:13]} 2. Nc3 {[%emt 0:00:00]} Nc6 {[%emt 0:00:37]} 3. d3 {[%emt 0:00:00]} g6 {[%emt 0:00:15]} 4. g3 {[%emt 0:00:07]} Bg7 {[%emt 0:00:26]} 5. Be3 {[%emt 0:00:04]} d6 {[%emt 0:00:13]} 6. Qd2 {[%emt 1:32:49]} e5 {[%emt 0:00:23]} 7. Bg2 {[%emt 0:00:07]} Be6 {[%emt 0:00:20]} 8. Nge2 {[%emt 1:33:29]} Qd7 {[%emt 0:02:42]} 9. Nd5 {[%emt 0:03:10]} f5 {[%emt 0:12:00]} 10. c3 {[%emt 0:00:31]} Nf6 {[%emt 0:11:44]} 11. Nxf6+ {[%emt 0:02:33]} Bxf6 {[%emt 0:01:13]} 12. d4 {[%emt 0:03:21]} exd4 {[%emt 0:21:56]} 13. cxd4 {[%emt 0:00:00]} Nb4 {[%emt 0:43:28]} 14. O-O {[%emt 0:01:00]} fxe4 {[%emt 0:00:53]} 15. Bxe4 {[%emt 0:00:00]} Rc8 {[%emt 0:13:47]} 16. a3 {[%emt 0:02:00]} Nd5 {[%emt 0:00:00]} 1-0

[Event "Bionext Festival 2019"]
[Site "Chihuahua"]
[Date "2019.12.01"]
[Round "7.10"]
[White "Hernandez Jimenez, Alexander Andres"]
[Black "Bencomo, Murga Francisco"]
[Result "1-0"]
[ECO "B45"]
[WhiteElo "2135"]
[BlackElo "1865"]
[Annotator "ChessBase"]
[PlyCount "109"]
[EventDate "2019.11.30"]
[EventType "swiss"]
[EventCountry "MEX"]
[SourceTitle "playchess.com"]
[Source "ChessBase"]
[SourceQuality "1"]
[TimeControl "5400+30"]

1. e4 {[%emt 0:00:00]} c5 {[%emt 1:30:30]} 2. Nf3 {[%emt 0:00:00]} Nc6 {[%emt 0:00:05]} 3. d4 {[%emt 0:01:07]} cxd4 {[%emt 0:00:07]} 4. Nxd4 {[%emt 0:00:06]} Nf6 {[%emt 0:00:07]} 5. Nc3 {[%emt 0:00:09]} e6 {[%emt 0:00:03]} 6. Ndb5 {[%emt 0:02:40]} Bb4 {[%emt 0:01:27]} 7. a3 {[%emt 0:01:06]} Bxc3+ {[%emt 0:00:17]} 8. Nxc3 {[%emt 0:00:07]} d5 {[%emt 0:02:37]} 9. exd5 {[%emt 1:29:15]} Nxd5 {[%emt 0:00:39]} 10. Nxd5 {[%emt 0:07:04]} exd5 {[%emt 0:00:08]} 11. Be2 {[%emt 0:03:05]} O-O {[%emt 0:00:37]} 12. O-O {[%emt 0:00:09]} Be6 {[%emt 1:27:48]} 13. Bd3 {[%emt 0:04:53]} Qf6 {[%emt 0:03:04]} 14. Qh5 {[%emt 0:10:15]} h6 {[%emt 0:15:41]} 15. Re1 {[%emt 0:11:24]} Rfe8 {[%emt 1:09:39]} 16. Bd2 {[%emt 0:04:42]} d4 {[%emt 0:06:50]} 17. Re4 {[%emt 0:02:36]} Bd7 {[%emt 0:05:21]} 18. Rae1 {[%emt 0:14:44]} Rxe4 {[%emt 0:06:54]} 19. Rxe4 {[%emt 0:00:09]} Re8 {[%emt 0:00:35]} 20. Qe2 {[%emt 0:06:40]} Re6 {[%emt 0:04:40]} 21. f4 {[%emt 0:03:18]} a6 {[%emt 0:02:29]} 22. Bc4 {[%emt 0:26:37]} Rxe4 {[%emt 0:03:11]} 23. Qxe4 {[%emt 0:00:08]} Qf5 {[%emt 0:01:12]} 24. Bd3 {[%emt 0:03:41]} Qxe4 {[%emt 0:02:11]} 25. Bxe4 {[%emt 0:00:02]} Kf8 {[%emt 0:05:00]} 26. Kf2 {[%emt 0:00:24]} Ke7 {[%emt 0:01:53]} 27. Ke2 {[%emt 0:04:18]} f5 {[%emt 0:03:43]} 28. Bf3 {[%emt 0:01:56]} b6 {[%emt 0:00:28]} 29. Kd3 {[%emt 0:01:39]} a5 {[%emt 0:01:26]} 30. Be1 {[%emt 0:04:00]} Kd6 {[%emt 0:01:18]} 31. Bf2 {[%emt 0:00:05]} g6 {[%emt 0:00:46]} 32. Bxd4 {[%emt 0:00:16]} b5 {[%emt 0:00:24]} 33. Bg7 {[%emt 0:00:21]} h5 {[%emt 0:00:31]} 34. Bf8+ {[%emt 0:01:20]} Ke6 {[%emt 0:00:45]} 35. b4 {[%emt 0:01:38]} a4 {[%emt 0:01:09]} 36. c4 {[%emt 0:00:35]} Na7 {[%emt 0:06:48]} 37. Bg7 {[%emt 0:03:05]} Kd6 {[%emt 0:00:44]} 38. Be5+ {[%emt 0:00:15]} Ke7 {[%emt 0:00:36]} 39. Bb2 {[%emt 0:09:56]} Kd6 {[%emt 0:05:31]} 40. Bd5 {[%emt 0:05:19]} bxc4+ {[%emt 0:02:52]} 41. Bxc4 {[%emt 0:00:30]} Bc6 {[%emt 0:03:39]} 42. Bf7 {[%emt 0:01:00]} Bxg2 {[%emt 0:01:10]} 43. Bxg6 {[%emt 0:01:30]} Bf1+ {[%emt 0:03:13]} 44. Ke3 {[%emt 0:02:00]} Ke6 {[%emt 0:01:44]} 45. Bxh5 {[%emt 0:00:00]} Nb5 {[%emt 0:00:19]} 46. Bd1 {[%emt 0:00:00]} Nd6 {[%emt 0:00:00]} 47. Kd2 {[%emt 0:00:00]} Bb5 {[%emt 0:00:00]} 48. h4 {[%emt 0:00:00]} Ne4+ {[%emt 0:00:00]} 49. Ke3 {[%emt 0:02:30]} Kd5 {[%emt 0:00:06]} 50. h5 {[%emt 0:00:22]} Be8 {[%emt 0:00:18]} 51. h6 {[%emt 0:00:11]} Bg6 {[%emt 0:00:02]} 52. Bxa4 {[%emt 0:00:10]} Kc4 {[%emt 0:00:47]} 53. Be5 {[%emt 0:00:34]} Bh7 {[%emt 0:00:23]} 54. Bc6 {[%emt 0:00:34]} Ng3 {[%emt 0:00:28]} 55. b5 {[%emt 0:00:13]} 1-0